bitfinex/quotes_SOLUSD_20220311
["timestamp","ask_amount","ask_price","bid_price","bid_amount"]
[1646984057273,63.94438274,82.328,82.248,6.0]
[1646984057472,63.94438274,82.328,82.25,121.4]
[1646984057673,63.94438274,82.328,82.251,6.0]
[1646984058874,30.68580626,82.327,82.251,6.0]
[1646984060071,29.18580626,82.327,82.251,6.0]
[1646984060473,29.18580626,82.327,82.252,121.4]
[1646984060673,29.18580626,82.327,82.253,6.0]
[1646984060872,29.18580626,82.327,82.255,121.4]
[1646984061073,29.18580626,82.327,82.256,6.0]
[1646984063174,25.43507899,82.34,82.256,6.0]
[1646984063976,25.43507899,82.34,82.257,121.4]
[1646984064178,25.43507899,82.34,82.259,121.4]
[1646984064376,18.2207,82.35,82.26,6.0]
[1646984064577,27.797081,82.355,82.26,6.0]
[1646984064780,25.43507899,82.366,82.262,121.4]
[1646984065079,25.43507899,82.366,82.263,18.71330651]
[1646984065281,52.0399961,82.365,82.264,121.4]
[1646984065480,52.0399961,82.365,82.265,6.0]
[1646984065682,52.0399961,82.365,82.271,121.4]
[1646984065884,52.0399961,82.365,82.273,121.4]
[1646984066102,52.0399961,82.365,82.277,121.4]
[1646984066306,52.0399961,82.365,82.274,6.0]
[1646984066307,29.86247293,82.364,82.279,121.4]
[1646984066506,29.86247293,82.364,82.28,6.0]
[1646984067304,29.86247293,82.364,82.282,121.4]
[1646984067505,29.86247293,82.364,82.283,6.0]
[1646984068807,18.2165,82.37,82.283,6.0]
[1646984069009,55.2534055,82.373,82.283,6.0]
[1646984069406,29.13658108,82.376,82.283,6.0]
[1646984070305,55.4827807,82.375,82.283,6.0]
[1646984070706,18.2163,82.37,82.283,6.0]
[1646984071105,29.13658108,82.369,82.283,6.0]
[1646984076310,29.13658108,82.369,82.284,3.04447957]
[1646984076513,29.13658108,82.369,82.285,6.0]
[1646984076912,29.13658108,82.369,82.286,3.04447957]
[1646984077212,16.01413213,82.395,82.288,194.26]
[1646984077416,26.2896835,82.39,82.291,121.4]
[1646984077612,26.2896835,82.39,82.293,121.4]
[1646984077812,26.2896835,82.39,82.294,6.0]
[1646984078016,46.39493899,82.389,82.298,121.4]
[1646984078314,46.39493899,82.389,82.308,121.4]
[1646984078515,46.39493899,82.389,82.311,121.4]
[1646984078715,46.39493899,82.389,82.312,6.0]
[1646984079222,75.53152007,82.389,82.314,121.4]
[1646984079518,75.53152007,82.389,82.315,6.0]
[1646984080816,75.53152007,82.389,82.313,46.989]
[1646984080817,75.53152007,82.389,82.314,6.0]
[1646984081022,3.04447957,82.388,82.313,46.989]
[1646984081423,16.01413213,82.387,82.313,46.989]
[1646984081624,42.30381563,82.387,82.313,46.989]
[1646984081820,60.7317,82.38,82.313,46.989]
[1646984082019,48.25516828,82.369,82.313,46.989]
[1646984083019,48.25516828,82.369,82.314,121.4]
[1646984083222,24.2962,82.385,82.314,121.4]
[1646984084221,18.2141,82.38,82.313,46.989]
[1646984084824,48.07657293,82.38,82.313,46.989]
[1646984086424,18.2185,82.36,82.313,46.989]
[1646984086625,29.86247293,82.38,82.313,46.989]
[1646984088024,63.53097565,82.384,82.313,46.989]
[1646984088425,92.66755673,82.384,82.313,46.989]
[1646984089437,63.53097565,82.384,82.314,121.4]
[1646984089736,24.2962,82.385,82.315,6.0]
[1646984090737,51.7106204,82.384,82.315,6.0]
[1646984091137,29.13658108,82.383,82.315,6.0]
[1646984091739,29.13658108,82.383,82.314,6.0]
[1646984091938,29.13658108,82.383,82.314,127.4]
[1646984092366,29.13658108,82.383,82.314,6.0]
[1646984092564,29.13658108,82.383,82.314,127.4]
[1646984092966,18.2147,82.38,82.313,46.989]
[1646984093365,51.7106204,82.384,82.313,46.989]
[1646984093568,26.2896835,82.379,82.313,46.989]
[1646984093966,23.97789619,82.378,82.313,46.989]
[1646984094167,47.89644551,82.359,82.313,46.989]
[1646984094766,29.13658108,82.358,82.313,46.989]
[1646984095667,47.89644551,82.359,82.313,46.989]
[1646984096067,29.68913959,82.372,82.313,46.989]
[1646984096267,24.2962,82.385,82.313,46.989]
[1646984096468,29.68913959,82.384,82.313,46.989]
[1646984096669,18.2171,82.37,82.313,46.989]
[1646984097469,29.68913959,82.384,82.313,46.989]
[1646984098368,18.214,82.38,82.313,46.989]
[1646984098668,26.38352935,82.379,82.313,46.989]
[1646984101775,65.28654552,82.369,82.313,46.989]
[1646984102274,29.68913959,82.368,82.313,46.989]
[1646984107181,29.68913959,82.368,82.313,23.1176]
[1646984108080,18.2186,82.36,82.313,23.1176]
[1646984108282,29.68913959,82.368,82.313,23.1176]
[1646984108680,29.68913959,82.368,82.278,61.02]
[1646984108880,29.68913959,82.368,82.279,6.0]
[1646984109081,18.2185,82.36,82.277,6.0]
[1646984109881,23.4507,82.359,82.278,24.7086]
[1646984110082,23.4507,82.359,82.279,6.0]
[1646984110289,29.21606857,82.358,82.279,6.0]
[1646984110581,61.86540509,82.349,82.279,6.0]
[1646984114392,29.21606857,82.358,82.28,3.04447957]
[1646984114592,23.4507,82.359,82.281,127.4]
[1646984114889,23.4507,82.359,82.282,3.04447957]
[1646984115090,23.4507,82.359,82.283,127.4]
[1646984115588,23.4507,82.359,82.285,121.4]
[1646984115790,23.4507,82.359,82.286,18.73448784]
[1646984116392,23.4507,82.359,82.286,6.0]
[1646984117492,23.4507,82.359,82.28,6.0]
[1646984117896,23.4507,82.359,82.282,121.4]
[1646984118092,23.4507,82.359,82.283,6.0]
[1646984119195,23.4507,82.359,82.28,6.0]
[1646984119595,23.4507,82.359,82.282,121.4]
[1646984119797,23.4507,82.359,82.283,6.0]
[1646984120697,23.4507,82.359,82.28,6.0]
[1646984121298,23.4507,82.359,82.282,121.4]
[1646984121499,23.4507,82.359,82.283,6.0]
[1646984121701,23.4507,82.359,82.284,121.4]
[1646984121900,23.4507,82.359,82.285,6.0]
[1646984123104,23.4507,82.359,82.28,6.0]
[1646984123404,23.4507,82.359,82.287,121.4]
[1646984123606,23.4507,82.359,82.288,6.0]
[1646984123803,23.4507,82.359,82.29,18.2169]
[1646984124005,23.4507,82.359,82.291,6.0]
[1646984125807,52.66676857,82.359,82.291,6.0]
[1646984126025,52.66676857,82.359,82.29,6.0]
[1646984126923,62.35731981,82.349,82.29,6.0]
[1646984127927,62.35731981,82.349,82.29,24.2174]
[1646984128125,23.4507,82.359,82.291,121.4]
[1646984129025,49.16445622,82.358,82.292,6.0]
[1646984129424,49.16445622,82.358,82.29,6.0]
[1646984130826,75.54798557,82.358,82.29,6.0]
[1646984131231,75.54798557,82.358,82.29,24.2171]
[1646984133130,75.54798557,82.358,82.29,6.0]
[1646984133329,18.2209,82.35,82.29,6.0]
[1646984135240,49.16445622,82.358,82.29,6.0]
[1646984135741,23.4507,82.359,82.29,6.0]
[1646984135944,29.68913959,82.371,82.291,121.4]
[1646984136144,1.6728369,82.374,82.291,127.76]
[1646984136344,1.6728369,82.377,82.291,127.76]
[1646984136747,50.74349527,82.376,82.291,127.76]
[1646984136943,50.74349527,82.376,82.292,6.0]
[1646984137143,77.12702462,82.376,82.292,6.0]
[1646984137343,29.13658108,82.375,82.292,6.0]
[1646984137747,29.13658108,82.375,82.291,6.36]
[1646984138761,29.13658108,82.375,82.292,121.4]
[1646984138958,29.13658108,82.375,82.293,6.0]
[1646984141158,18.2185,82.36,82.293,6.0]
[1646984141463,62.9734281,82.359,82.294,121.4]
[1646984141660,62.9734281,82.359,82.295,6.0]
[1646984142760,29.13658108,82.375,82.295,6.0]
[1646984143460,24.1209,82.379,82.295,6.0]
[1646984143758,59.19937422,82.378,82.295,6.0]
[1646984145381,18.2165,82.37,82.295,6.0]
[1646984145787,59.19937422,82.378,82.295,6.0]
[1646984145987,59.19937422,82.378,82.296,12.75648022]
[1646984146186,59.19937422,82.378,82.297,6.0]
[1646984146493,18.2166,82.37,82.297,6.0]
[1646984147086,18.2166,82.37,82.295,6.0]
[1646984147289,23.97789619,82.377,82.295,6.0]
[1646984147496,59.19937422,82.378,82.295,6.0]
[1646984147696,59.19937422,82.378,82.297,121.4]
[1646984147892,59.19937422,82.378,82.298,6.0]
[1646984148091,59.19937422,82.378,82.299,121.4]
[1646984148292,59.19937422,82.378,82.3,6.0]
[1646984148492,59.19937422,82.378,82.301,121.4]
[1646984148693,59.19937422,82.378,82.302,6.0]
[1646984149094,59.19937422,82.378,82.303,48.3371]
[1646984149292,18.2162,82.37,82.304,6.0]
[1646984149901,59.19937422,82.378,82.304,6.0]
[1646984151803,59.19937422,82.378,82.303,48.3371]
[1646984152606,18.2163,82.37,82.303,48.3371]
[1646984153207,18.2163,82.37,82.304,121.4]
[1646984153406,18.2163,82.37,82.303,48.3371]
[1646984158332,18.2187,82.36,82.303,48.3371]
[1646984158534,58.70548359,82.359,82.303,48.3371]
[1646984160841,58.70548359,82.359,82.261,121.4]
[1646984161041,22.5049,82.358,82.277,24.4473]
[1646984162041,18.2207,82.35,82.277,24.4473]
[1646984162241,18.2207,82.35,82.278,6.0]
[1646984163341,18.2234,82.34,82.278,6.0]
[1646984163542,22.5049,82.358,82.277,24.4473]
[1646984163742,29.692889,82.349,82.277,24.4473]
[1646984164341,16.12182056,82.348,82.277,24.4473]
[1646984164739,48.21097948,82.346,82.277,24.4473]
[1646984165140,18.2277,82.32,82.277,24.4473]
[1646984165340,61.21720867,82.319,82.277,24.4473]
[1646984168946,61.21720867,82.319,82.248,43.0893]
[1646984169148,61.21720867,82.319,82.249,6.0]
[1646984169549,61.21720867,82.319,82.25,12.7653901]
[1646984169750,61.21720867,82.319,82.251,6.0]
[1646984169948,61.21720867,82.319,82.25,12.7653901]
[1646984170151,121.4,82.318,82.25,12.7653901]
[1646984170450,151.09030573,82.318,82.237,23.7602]
[1646984170650,3.04447957,82.317,82.237,23.7602]
[1646984170951,121.4,82.316,82.237,23.7602]
[1646984171151,50.70888148,82.289,82.237,23.7602]
[1646984182281,18.2362,82.28,82.237,23.7602]
[1646984188589,50.70888148,82.289,82.237,23.7602]
[1646984197198,18.2362,82.28,82.237,23.7602]
[1646984202601,50.70888148,82.289,82.237,23.7602]
[1646984203401,23.471,82.297,82.237,23.7602]
[1646984204406,59.28136434,82.296,82.237,23.7602]
[1646984210212,23.471,82.297,82.237,23.7602]
[1646984211413,53.32693374,82.296,82.237,23.7602]
[1646984213312,23.471,82.297,82.237,23.7602]
[1646984213512,18.232,82.3,82.237,23.7602]
[1646984213715,45.70438259,82.322,82.238,121.4]
[1646984213913,29.69030573,82.322,82.239,6.0]
[1646984214114,29.69030573,82.322,82.24,121.4]
[1646984214316,61.94739343,82.321,82.241,6.0]
[1646984214514,61.94739343,82.321,82.243,121.4]
[1646984214814,61.94739343,82.321,82.244,6.0]
[1646984215116,61.94739343,82.321,82.244,143.11816778]
[1646984215514,61.94739343,82.321,82.244,21.71816778]
[1646984215914,61.94739343,82.321,82.245,12.67368821]
[1646984216116,18.2276,82.32,82.246,6.0]
[1646984216614,18.2276,82.32,82.247,12.67368821]
[1646984216816,18.2276,82.32,82.248,6.0]
[1646984217215,18.2276,82.32,82.249,23.0134]
[1646984217423,18.2276,82.32,82.25,6.0]
[1646984218517,47.91790573,82.32,82.25,6.0]
[1646984218918,47.91790573,82.32,82.251,12.70604787]
[1646984219116,47.91790573,82.32,82.252,6.0]
[1646984219816,47.91790573,82.32,82.25,6.0]
[1646984220418,47.91790573,82.32,82.251,12.70415184]
[1646984220620,47.91790573,82.32,82.252,6.0]
[1646984221117,47.91790573,82.32,82.251,12.70415184]
[1646984221317,47.91790573,82.32,82.249,23.0134]
[1646984222119,47.91790573,82.32,82.25,6.0]
[1646984222318,47.91790573,82.32,82.249,23.0134]
[1646984223424,47.91790573,82.32,82.25,6.0]
[1646984226849,18.2297,82.31,82.25,6.0]
[1646984227151,18.2297,82.31,82.249,23.0134]
[1646984227649,29.69030573,82.31,82.249,23.0134]
[1646984228049,18.2321,82.3,82.249,23.0134]
[1646984228952,29.69030573,82.31,82.249,23.0134]
[1646984229151,24.9145,82.32,82.249,23.0134]
[1646984230153,24.9145,82.32,82.222,19.23775389]
[1646984230154,180.19268149,82.319,82.222,19.23775389]
[1646984230553,121.4,82.317,82.223,22.8252]
[1646984230753,48.74886216,82.318,82.223,22.8252]
[1646984230952,32.7347853,82.316,82.223,22.8252]
[1646984231159,32.7347853,82.316,82.217,20.98487957]
[1646984231354,32.7347853,82.315,82.217,20.98487957]
[1646984231555,14.54,82.31,82.217,20.98487957]
[1646984231855,14.54,82.31,82.243,23.7324]
[1646984232062,44.23030573,82.31,82.243,23.7324]
[1646984232254,61.69033103,82.289,82.243,23.7324]
[1646984241768,18.2368,82.28,82.243,23.7324]
[1646984245269,61.69033103,82.289,82.243,23.7324]
[1646984246575,91.38063676,82.289,82.243,23.7324]
[1646984251105,18.2366,82.28,82.243,23.7324]
[1646984261718,61.69033103,82.289,82.243,23.7324]
[1646984262322,23.8805,82.295,82.243,23.7324]
[1646984263220,63.56055937,82.294,82.243,23.7324]
[1646984264121,18.2344,82.29,82.243,23.7324]
[1646984267123,44.03323166,82.29,82.243,23.7324]
[1646984267326,18.2362,82.28,82.243,23.7324]
[1646984268325,47.92650573,82.28,82.243,23.7324]
[1646984270149,18.2362,82.28,82.243,23.7324]
[1646984314130,29.69030573,82.279,82.201,19.26689715]
[1646984314326,22.5261,82.278,82.206,24.9418]
[1646984314521,35.2263682,82.278,82.206,24.9418]
[1646984314725,121.4,82.277,82.206,24.9418]
[1646984314923,172.22543716,82.277,82.206,24.9418]
[1646984315123,18.2451,82.24,82.206,24.9418]
[1646984315325,50.47714439,82.269,82.206,24.9418]
[1646984315524,73.00324439,82.269,82.206,24.9418]
[1646984316022,25.87831915,82.268,82.206,24.9418]
[1646984317126,18.243,82.25,82.206,24.9418]
[1646984324239,124.44447957,82.249,82.168,113.7]
[1646984324436,172.22543716,82.249,82.168,113.7]
[1646984324637,121.4,82.247,82.121,121.4]
[1646984324837,121.4,82.247,82.14,6.0]
[1646984325038,121.4,82.243,82.14,6.0]
[1646984325337,121.4,82.239,82.141,12.74941398]
[1646984325538,14.54,82.24,82.141,12.74941398]
[1646984325539,60.37894243,82.199,82.142,54.3571]
[1646984326440,60.37894243,82.199,82.142,48.3571]
[1646984326843,18.2586,82.18,82.142,48.3571]
[1646984327040,30.99145734,82.198,82.142,48.3571]
[1646984327440,58.66675292,82.197,82.142,47.3571]
[1646984327840,30.99145734,82.196,82.142,47.3571]
[1646984328040,18.2585,82.18,82.142,47.3571]
[1646984331363,18.2585,82.18,82.142,46.3571]
[1646984334063,18.2585,82.18,82.142,45.3571]
[1646984336766,18.2585,82.18,82.142,44.3571]
[1646984340471,3.04447957,82.196,82.142,43.8571]
[1646984340670,1.25902232,82.208,82.142,43.8571]
[1646984340870,14.54,82.23,82.142,43.8571]
[1646984341669,50.09473552,82.229,82.142,43.8571]
[1646984342069,24.7867,82.228,82.142,43.8571]
[1646984342474,25.59259111,82.227,82.142,43.8571]
[1646984343072,3.04447957,82.226,82.142,43.8571]
[1646984343271,22.80540717,82.226,82.142,43.8571]
[1646984343471,157.26344247,82.225,82.142,43.8571]
[1646984343773,121.4,82.219,82.142,43.8571]
[1646984343972,18.2559,82.2,82.142,43.8571]
[1646984344171,14.54,82.22,82.142,43.8571]
[1646984344771,16.64436464,82.219,82.142,43.8571]
[1646984345173,18.2537,82.21,82.142,43.8571]
[1646984345374,60.8516,82.22,82.142,43.8571]
[1646984345671,78.9012,82.22,82.142,43.8571]
[1646984346871,18.2559,82.2,82.142,43.8571]
[1646984347072,64.56175075,82.199,82.142,43.8571]
[1646984349073,18.2562,82.19,82.142,43.8571]
[1646984349471,64.56175075,82.199,82.142,43.8571]
[1646984349472,64.56175075,82.199,82.143,6.0]
[1646984350276,64.56175075,82.199,82.142,43.8571]
[1646984350674,60.8516,82.22,82.142,43.8571]
[1646984350878,8.32218232,82.23,82.142,43.8571]
[1646984351075,8.32218232,82.23,82.142,165.2571]
[1646984351274,22.7634,82.243,82.143,33.99432362]
[1646984351480,22.7634,82.243,82.144,121.4]
[1646984351674,54.95652957,82.242,82.145,6.0]
[1646984351876,18.2454,82.24,82.151,121.4]
[1646984352078,18.2454,82.24,82.152,6.0]
[1646984352679,18.2454,82.24,82.153,48.22014405]
[1646984352881,18.2454,82.24,82.154,6.0]
[1646984353077,18.2454,82.24,82.154,30.94984405]
[1646984354883,18.2454,82.24,82.16,18.2444]
[1646984355081,18.2454,82.24,82.161,6.0]
[1646984357085,18.2454,82.24,82.161,127.4]
[1646984357286,56.81985669,82.246,82.161,127.4]
[1646984358091,18.2429,82.25,82.161,127.4]
[1646984359291,80.51722433,82.25,82.161,127.4]
[1646984361695,18.2429,82.25,82.161,127.4]
[1646984361895,18.2407,82.26,82.162,3.04447957]
[1646984362096,22.5265,82.268,82.163,6.0]
[1646984362313,22.5265,82.268,82.164,121.4]
[1646984362518,25.57097957,82.268,82.165,6.0]
[1646984362719,22.5265,82.268,82.166,121.4]
[1646984362918,22.5265,82.268,82.167,6.0]
[1646984363320,22.5265,82.268,82.17,121.4]
[1646984363522,22.5265,82.268,82.174,121.4]
[1646984363720,22.5265,82.268,82.178,121.4]
[1646984364020,3.04447957,82.288,82.179,6.0]
[1646984364224,25.59259111,82.294,82.181,121.4]
[1646984364423,25.59259111,82.294,82.182,6.0]
[1646984364625,25.59259111,82.294,82.183,121.4]
[1646984364824,56.64392836,82.293,82.184,6.0]
[1646984365024,18.2342,82.29,82.184,6.0]
[1646984365223,18.2342,82.29,82.185,121.4]
[1646984365424,18.2342,82.29,82.191,121.4]
[1646984365630,18.2342,82.29,82.197,121.4]
[1646984365823,18.2342,82.29,82.198,6.0]
[1646984367625,25.59259111,82.292,82.198,6.0]
[1646984367828,25.59259111,82.312,82.199,153.80797079]
[1646984368027,25.59259111,82.312,82.2,6.0]
[1646984368227,25.59259111,82.312,82.201,121.65]
[1646984368525,25.59259111,82.312,82.211,121.4]
[1646984368724,58.67660158,82.311,82.212,6.0]
[1646984369125,58.67660158,82.311,82.213,121.4]
[1646984369325,58.67660158,82.311,82.214,6.0]
[1646984369525,58.67660158,82.311,82.217,182.42]
[1646984369725,58.67660158,82.311,82.218,6.0]
[1646984369925,58.67660158,82.311,82.219,121.4]
[1646984370127,58.67660158,82.311,82.22,6.0]
[1646984370526,58.67660158,82.311,82.221,3.04447957]
[1646984370730,58.67660158,82.311,82.222,6.0]
[1646984371127,58.67660158,82.311,82.223,3.04447957]
[1646984371328,58.67660158,82.311,82.224,6.0]
[1646984371628,124.44447957,82.31,82.223,3.04447957]
[1646984371829,138.98447957,82.31,82.225,3.04447957]
[1646984372028,3.04447957,82.309,82.201,22.9075]
[1646984372229,33.21961481,82.309,82.201,22.9075]
[1646984372428,121.4,82.308,82.201,22.9075]
[1646984372627,124.44447957,82.308,82.201,22.9075]
[1646984372828,18.2385,82.27,82.201,22.9075]
[1646984373029,49.31379302,82.282,82.202,121.4]
[1646984373232,14.54,82.3,82.219,121.4]
[1646984373431,33.21961481,82.307,82.219,121.4]
[1646984374028,57.62501481,82.306,82.219,121.4]
[1646984374229,48.87003424,82.305,82.219,121.4]
[1646984374430,79.04516948,82.305,82.219,121.4]
[1646984374829,30.17513524,82.304,82.219,121.4]
[1646984375231,18.2321,82.3,82.219,121.4]
[1646984375630,48.40723524,82.3,82.219,121.4]
[1646984376233,48.40723524,82.3,82.21,18.2328]
[1646984376234,121.4,82.299,82.19,18.2378]
[1646984376431,3.04447957,82.299,82.197,3.04447957]
[1646984376633,14.54,82.29,82.197,3.04447957]
[1646984377034,33.21961481,82.289,82.197,3.04447957]
[1646984377232,33.21961481,82.289,82.192,23.5362]
[1646984377437,18.2364,82.28,82.193,9.04447957]
[1646984377833,18.2364,82.28,82.194,3.04447957]
[1646984378034,19.28250794,82.288,82.195,6.0]
[1646984378235,3.04447957,82.299,82.195,6.0]
[1646984378435,3.04447957,82.299,82.196,3.04447957]
[1646984378633,3.04447957,82.299,82.197,6.0]
[1646984379035,3.04447957,82.299,82.198,3.04447957]
[1646984379334,18.232,82.3,82.199,6.0]
[1646984379536,24.4054,82.306,82.202,121.4]
[1646984379734,24.4054,82.306,82.204,121.4]
[1646984379936,24.4054,82.306,82.205,6.0]
[1646984380334,24.4054,82.306,82.206,3.04447957]
[1646984380535,24.4054,82.306,82.211,121.4]
[1646984380738,24.4054,82.306,82.212,6.0]
[1646984380939,24.4054,82.306,82.214,121.4]
[1646984381137,24.4054,82.306,82.215,6.0]
[1646984381540,24.4054,82.306,82.216,121.4]
[1646984381738,24.4054,82.306,82.217,6.0]
[1646984381938,24.4054,82.306,82.217,9.04447957]
[1646984382139,3.04447957,82.328,82.218,217.6886]
[1646984382340,3.04447957,82.328,82.221,121.4]
[1646984382541,37.4898,82.34,82.222,6.0]
[1646984382742,3.04447957,82.339,82.223,121.4]
[1646984382945,3.04447957,82.339,82.224,6.0]
[1646984383142,59.87340881,82.338,82.225,121.4]
[1646984383345,82.66970881,82.338,82.227,121.4]
[1646984383548,85.71418838,82.338,82.228,6.0]
[1646984383746,18.2273,82.32,82.229,121.4]
[1646984383944,18.2273,82.32,82.231,121.4]
[1646984384148,18.2273,82.32,82.232,6.0]
[1646984384348,3.04447957,82.319,82.226,23.2138]
[1646984384547,30.81028148,82.319,82.226,23.2138]
[1646984384747,27.76580191,82.318,82.226,23.2138]
[1646984384946,30.81028148,82.318,82.226,23.2138]
[1646984385146,27.76580191,82.318,82.226,23.2138]
[1646984385348,3.04447957,82.317,82.226,23.2138]
[1646984385547,29.5549875,82.317,82.226,23.2138]
[1646984385847,56.56311446,82.279,82.226,23.2138]
[1646984388252,18.2386,82.27,82.226,23.2138]
[1646984389173,18.2386,82.27,82.193,23.9129]
[1646984389575,18.2386,82.27,82.194,24.5677]
[1646984389981,3.04447957,82.269,82.194,24.5677]
[1646984390377,30.81028148,82.269,82.194,24.5677]
[1646984390776,4.84702949,82.268,82.194,24.5677]
[1646984390977,18.2448,82.25,82.194,24.5677]
[1646984391182,51.50522284,82.249,82.194,24.5677]
[1646984395382,18.2448,82.25,82.194,24.5677]
[1646984399289,4.84702949,82.267,82.194,24.5677]
[1646984399688,3.04447957,82.266,82.194,24.5677]
[1646984400188,58.643501,82.265,82.194,24.5677]
[1646984400590,18.2431,82.25,82.194,24.5677]
[1646984401687,20.04564992,82.25,82.194,24.5677]
[1646984401887,46.00890191,82.25,82.194,24.5677]
[1646984403387,18.2431,82.25,82.194,24.5677]
[1646984406693,3.04447957,82.264,82.194,24.5677]
[1646984406893,1.6728369,82.29,82.195,3.04447957]
[1646984407097,144.0541,82.299,82.196,6.0]
[1646984407296,22.6541,82.299,82.196,35.36063368]
[1646984407494,64.61665713,82.282,82.196,29.36063368]
[1646984407894,64.61665713,82.282,82.197,6.0]
[1646984408293,18.2384,82.27,82.198,24.8492]
[1646984408493,18.2384,82.27,82.199,6.0]
[1646984409098,64.61665713,82.282,82.199,6.0]
[1646984410098,18.2408,82.26,82.199,6.0]
[1646984410597,18.2408,82.26,82.198,24.8492]
[1646984411399,24.8403,82.279,82.198,24.8492]
[1646984412198,24.8403,82.279,82.199,6.0]
[1646984413199,24.8403,82.279,82.199,127.4]
[1646984413604,24.8403,82.279,82.199,6.0]
[1646984414403,24.8403,82.279,82.199,127.4]
[1646984414603,24.8403,82.279,82.199,6.0]
[1646984415235,24.8403,82.279,82.198,24.8492]
[1646984416234,18.2411,82.26,82.198,24.8492]
[1646984416641,18.2411,82.26,82.199,6.0]
[1646984417234,24.8403,82.279,82.199,6.0]
[1646984418235,18.2386,82.27,82.199,6.0]
[1646984423248,24.8403,82.279,82.2,137.57926786]
[1646984423444,24.8403,82.279,82.201,127.4]
[1646984423844,24.8403,82.279,82.201,183.15858273]
[1646984424044,24.8403,82.279,82.203,121.4]
[1646984424246,47.77825581,82.278,82.204,6.0]
[1646984424644,47.77825581,82.278,82.206,121.4]
[1646984424845,47.77825581,82.278,82.207,6.0]
[1646984429350,47.77825581,82.278,82.206,6.0]
[1646984429558,47.77825581,82.278,82.205,24.5393]
[1646984432259,18.2385,82.27,82.205,24.5393]
[1646984433586,47.77825581,82.278,82.205,24.5393]
[1646984434988,47.77825581,82.278,82.206,6.0]
[1646984436192,18.2385,82.27,82.206,6.0]
[1646984437098,47.77825581,82.278,82.205,24.5393]
[1646984437495,18.2408,82.26,82.205,24.5393]
[1646984438198,124.44447957,82.277,82.205,24.5393]
[1646984438395,3.04447957,82.26,82.15,14.54]
[1646984438797,24.86665358,82.26,82.14,14.54]
[1646984438996,57.1323162,82.229,82.162,235.1]
[1646984439196,57.1323162,82.229,82.169,24.7568]
[1646984440096,57.1323162,82.229,82.171,12.70545858]
[1646984440296,18.2448,82.25,82.171,12.70545858]
[1646984440596,23.1966,82.259,82.171,12.70545858]
[1646984441399,59.47733798,82.258,82.171,12.70545858]
[1646984442202,18.2454,82.24,82.171,12.70545858]
[1646984442801,59.47733798,82.258,82.172,121.4]
[1646984443001,59.47733798,82.258,82.199,6.0]
[1646984443200,59.47733798,82.258,82.172,121.4]
[1646984443603,59.47733798,82.258,82.199,23.3022]
[1646984444005,27.73037708,82.276,82.199,23.3022]
[1646984444204,3.04447957,82.281,82.199,23.3022]
[1646984444405,27.73037708,82.289,82.199,23.3022]
[1646984444604,27.73037708,82.289,82.2,6.0]
[1646984444831,22.9162,82.282,82.2,6.0]
[1646984445004,18.2406,82.26,82.2,6.0]
[1646984445406,18.2406,82.26,82.199,23.3022]
[1646984449308,75.345,82.28,82.199,23.3022]
[1646984450113,27.73037708,82.279,82.199,23.3022]
[1646984450313,18.2409,82.26,82.199,23.3022]
[1646984450510,30.77485665,82.279,82.199,23.3022]
[1646984450911,3.04447957,82.278,82.199,23.3022]
[1646984452013,18.2408,82.26,82.199,23.3022]
[1646984454748,3.04447957,82.278,82.199,23.3022]
[1646984454946,18.2374,82.28,82.199,23.3022]
[1646984454947,18.2374,82.28,82.2,121.4]
[1646984455149,64.04158507,82.281,82.199,23.3022]